fUST/lending_fUST_20250418
["ID","MTS","AMOUNT","RATE_DAILY","PERIOD"]
[358348773,1744969844646,-500.0,0.00022191,2]
[358348774,1744969844656,-500.92291295,0.00022191,2]
[358348775,1744969844665,-500.0,0.00022191,2]
[358348776,1744969844675,-421.26174244,0.00022191,2]
[358348777,1744969844685,-500.0,0.00022191,2]
[358348778,1744969844694,-1014.33,0.00022191,2]
[358348779,1744969844703,-500.0,0.00022191,2]
[358348780,1744969844712,-697.48,0.00022191,2]
[358348781,1744969844722,-821.84,0.00022191,2]
[358348782,1744969844731,-823.26,0.00022191,2]
[358348783,1744969844741,-504.09905681,0.00022191,2]
[358348784,1744969844750,-500.0,0.00022191,2]
[358348785,1744969844760,-500.0,0.00022191,2]
[358348786,1744969844770,-1253.74,0.00022191,2]
[358348787,1744969844779,-1174.05,0.00022191,2]
[358348788,1744969844789,-500.0,0.00022191,2]
[358348789,1744969844798,-1732.07,0.00022191,2]
[358348790,1744969844807,-500.0,0.00022191,2]
[358348792,1744969844816,-500.0,0.00022191,2]
[358348794,1744969844826,-500.0,0.00022191,2]
[358348795,1744969844835,-500.0,0.00022191,2]
[358348797,1744969844845,-500.0,0.00022191,2]
[358348799,1744969844855,-500.0,0.00022191,2]
[358348801,1744969844864,-500.0,0.00022191,2]
[358348803,1744969844874,-501.24016458,0.00022191,2]
[358348804,1744969844883,-500.0,0.00022191,2]
[358348805,1744969844892,-500.0,0.00022191,2]
[358348806,1744969844902,-504.05722825,0.00022191,2]
[358348807,1744969844912,-500.0,0.00022191,2]
[358348808,1744969844920,-500.0,0.00022191,2]
[358348809,1744969844930,-504.14837455,0.00022191,2]
[358348810,1744969844940,-718.94,0.00022191,2]
[358348811,1744969844950,-500.0,0.00022191,2]
[358348812,1744969844960,-500.0,0.00022191,2]
[358348813,1744969844970,-482.82358185,0.00022191,2]
[358348814,1744969844979,-500.0,0.00022191,2]
[358348815,1744969844989,-500.0,0.00022191,2]
[358348816,1744969844999,-500.0,0.00022191,2]
[358348817,1744969845008,-500.0,0.00022191,2]
[358348818,1744969845018,-500.0,0.00022191,2]
[358348819,1744969845028,-500.0,0.00022191,2]
[358348820,1744969845037,-1601.44,0.00022191,2]
[358348821,1744969845047,-500.0,0.00022191,2]
[358348822,1744969845056,-500.0,0.00022191,2]
[358348823,1744969845065,-500.0,0.00022191,2]
[358348824,1744969845075,-818.4,0.00022191,2]
[358348825,1744969845084,-599.93,0.00022191,2]
[358348826,1744969845094,-500.0,0.00022191,2]
[358348827,1744969845103,-500.0,0.00022191,2]
[358348828,1744969845113,-575.28,0.00022191,2]
[358348829,1744969845123,-500.0,0.00022191,2]
[358348830,1744969845132,-818.98,0.00022191,2]
[358348831,1744969845142,-500.0,0.00022191,2]
[358348832,1744969845153,-500.0,0.00022191,2]
[358348833,1744969845163,-500.0,0.00022191,2]
[358348834,1744969845173,-521.98,0.00022191,2]
[358348835,1744969845182,-500.0,0.00022191,2]
[358348836,1744969845192,-2048.31,0.00022191,2]
[358348837,1744969845201,-500.0,0.00022191,2]
[358348838,1744969845211,-592.96,0.00022191,2]
[358348839,1744969845220,-500.0,0.00022191,2]
[358348840,1744969845229,-740.42,0.00022191,2]
[358348841,1744969845239,-1155.54,0.00022191,2]
[358348842,1744969845248,-500.0,0.00022191,2]
[358348843,1744969845257,-500.0,0.00022191,2]
[358348844,1744969845269,-500.0,0.00022191,2]
[358348845,1744969845278,-719.81,0.00022191,2]
[358348846,1744969845287,-1418.56,0.00022191,2]
[358348847,1744969845297,-1373.84,0.00022191,2]
[358348848,1744969845307,-500.0,0.00022191,2]
[358348849,1744969845316,-834.91,0.00022191,2]
[358348850,1744969845326,-500.0,0.00022191,2]
[358348851,1744969845335,-500.0,0.00022191,2]
[358348852,1744969845345,-207.55011457,0.00022191,2]
[358348853,1744969845356,-500.0,0.00022191,2]
[358348854,1744969845365,-715.51,0.00022191,2]
[358348855,1744969845375,-782.8,0.00022191,2]
[358348856,1744969845493,-500.0,0.00022191,2]
[358348857,1744969845517,-586.57,0.00022191,2]
[358348858,1744969845526,-910.97,0.00022191,2]
[358348859,1744969845536,-838.18,0.00022191,2]
[358348860,1744969845546,-908.24,0.00022191,2]
[358348861,1744969845556,-500.0,0.00022191,2]
[358348862,1744969845565,-1043.87,0.00022191,2]
[358348863,1744969845575,-500.5,0.00022191,2]
[358348864,1744969845585,-1873.48,0.00022191,2]
[358348865,1744969845596,-830.8,0.00022191,2]
[358348866,1744969845606,-500.0,0.00022191,2]
[358348867,1744969845615,-656.58,0.00022191,2]
[358348868,1744969845626,-672.25,0.00022191,2]
[358348869,1744969845636,-1142.22,0.00022191,2]
[358348870,1744969845648,-500.0,0.00022191,2]
[358348871,1744969845660,-595.35,0.00022191,2]
[358348872,1744969845669,-500.0,0.00022191,2]
[358348873,1744969845679,-870.18,0.00022191,2]
[358348874,1744969845688,-500.0,0.00022191,2]
[358348875,1744969845697,-5381.1,0.00022191,2]
[358348876,1744969845707,-666.25,0.00022191,2]
[358348877,1744969845716,-611.93,0.00022191,2]
[358348878,1744969845726,-500.0,0.00022191,2]
[358348879,1744969845737,-500.0,0.00022191,2]
[358348880,1744969845749,-500.0,0.00022191,2]
[358348881,1744969845760,-500.0,0.00022191,2]
[358348882,1744969845769,-1019.44,0.00022191,2]
[358348883,1744969845779,-500.0,0.00022191,2]
[358348884,1744969845788,-500.0,0.00022191,2]
[358348885,1744969845798,-565.8795484,0.00022191,2]
[358348886,1744969845808,-621.37,0.00022191,2]
[358348887,1744969845817,-1458.66,0.00022191,2]
[358348888,1744969845826,-500.0,0.00022191,2]
[358348889,1744969845836,-973.67,0.00022191,2]
[358348890,1744969845845,-1041.18,0.00022191,2]
[358348891,1744969845854,-547.07,0.00022191,2]
[358348892,1744969845863,-500.0,0.00022191,2]
[358348893,1744969845873,-614.42,0.00022191,2]
[358348894,1744969845882,-500.0,0.00022191,2]
[358348895,1744969845891,-1063.46,0.00022191,2]
[358348896,1744969845900,-310.28836686,0.00022191,2]
[358348897,1744969845910,-514.27,0.00022191,2]
[358348898,1744969845919,-888.58,0.00022191,2]
[358348899,1744969845928,-1023.59,0.00022191,2]
[358348900,1744969845938,-571.57,0.00022191,2]
[358348901,1744969845947,-500.0,0.00022191,2]
[358348902,1744969845956,-668.52,0.00022191,2]
[358348903,1744969845965,-312.96578514,0.00022191,2]
[358348904,1744969845975,-1015.64,0.00022191,2]
[358348905,1744969845984,-1151.13,0.00022191,2]
[358348906,1744969845993,-591.45,0.00022191,2]
[358348907,1744969846003,-500.0,0.00022191,2]
[358348908,1744969846012,-500.0,0.00022191,2]
[358348909,1744969846022,-500.0,0.00022191,2]
[358348910,1744969846031,-500.0,0.00022191,2]
[358348911,1744969846041,-500.0,0.00022191,2]
[358348912,1744969846050,-1031.04,0.00022191,2]
[358348913,1744969846060,-500.0,0.00022191,2]
[358348914,1744969846069,-743.36,0.00022191,2]
[358348915,1744969846079,-500.0,0.00022191,2]
[358348916,1744969846088,-711.32,0.00022191,2]
[358348917,1744969846098,-500.0,0.00022191,2]
[358348918,1744969846107,-500.0,0.00022191,2]
[358348919,1744969846116,-500.0,0.00022191,2]
[358348920,1744969846125,-1212.94,0.00022191,2]
[358348922,1744969846135,-1016.21,0.00022191,2]
[358348925,1744969846145,-500.0,0.00022191,2]
[358348928,1744969846154,-1580.35,0.00022191,2]
[358348930,1744969846164,-500.0,0.00022191,2]
[358348932,1744969846174,-500.0,0.00022191,2]
[358348934,1744969846183,-500.0,0.00022191,2]
[358348936,1744969846193,-1452.38,0.00022191,2]
[358348938,1744969846203,-607.14,0.00022191,2]
[358348940,1744969846212,-500.0,0.00022191,2]
[358348941,1744969846221,-207.086004,0.00022191,7]
[358348943,1744969846230,-805.4,0.00022191,2]
[358348945,1744969846239,-500.0,0.00022191,2]
[358348948,1744969846248,-535.31,0.00022191,2]
[358348950,1744969846257,-500.0,0.00022191,2]
[358348952,1744969846269,-500.0,0.00022191,2]
[358348953,1744969846278,-500.0,0.00022191,2]
[358348955,1744969846287,-500.0,0.00022191,2]
[358348957,1744969846296,-532.92,0.00022191,2]
[358348959,1744969846306,-522.32,0.00022191,2]
[358348961,1744969846315,-522.86,0.00022191,2]
[358348963,1744969846325,-966.35827,0.00022191,2]
[358348965,1744969846334,-966.35827,0.00022191,2]
[358348967,1744969846344,-500.0,0.00022191,2]
[358348969,1744969846354,-500.0,0.00022191,2]
[358348971,1744969846363,-509.89,0.00022191,2]
[358348972,1744969846372,-903.32,0.00022191,2]
[358348974,1744969846381,-966.35827,0.00022191,2]
[358348976,1744969846390,-966.35827,0.00022191,2]
[358348978,1744969846400,-500.0,0.00022191,2]
[358348980,1744969846409,-500.0,0.00022191,2]
[358348982,1744969846418,-500.0,0.00022191,2]
[358348984,1744969846427,-289.6375755,0.00022191,2]
[358348986,1744969846436,-1338.31,0.00022191,2]
[358348988,1744969846445,-1074.78,0.00022191,2]
[358348990,1744969846455,-500.0,0.00022191,2]
[358348992,1744969846464,-806.86,0.00022191,2]
[358348994,1744969846474,-611.09716728,0.00022191,2]
[358348997,1744969846484,-500.0,0.00022191,2]
[358349000,1744969846493,-1729.31,0.00022191,2]
[358349002,1744969846502,-2091.78,0.00022191,2]
[358349005,1744969846512,-500.0,0.00022191,2]
[358349007,1744969846521,-500.0,0.00022191,2]
[358349009,1744969846530,-855.01,0.00022191,2]
[358349011,1744969846540,-552.06,0.00022191,2]
[358349013,1744969846549,-638.2,0.00022191,2]
[358349015,1744969846559,-500.0,0.00022191,2]
[358349017,1744969846567,-3156.81,0.00022191,2]
[358349019,1744969846577,-1566.47,0.00022191,2]
[358349020,1744969846587,-500.0,0.00022191,2]
[358349022,1744969846596,-500.0,0.00022191,2]
[358349023,1744969846605,-989.08,0.00022191,2]
[358349025,1744969846614,-500.0,0.00022191,2]
[358349026,1744969846624,-500.0,0.00022191,2]
[358349028,1744969846633,-500.0,0.00022191,2]
[358349029,1744969846643,-500.0,0.00022191,2]
[358349031,1744969846652,-500.0,0.00022191,2]
[358349033,1744969846661,-500.0,0.00022191,2]
[358349034,1744969846672,-12201.51,0.00022191,2]
[358349035,1744969846681,-2905.35,0.00022191,2]
[358349036,1744969846691,-1311.45,0.00022191,2]
[358349037,1744969846700,-547.12,0.00022191,2]
[358349038,1744969846709,-500.0,0.00022191,2]
[358349039,1744969846718,-1997.84,0.00022191,2]
[358349040,1744969846727,-572.87,0.00022191,2]
[358349041,1744969846737,-500.0,0.00022191,2]
[358349042,1744969846746,-1131.34,0.00022191,2]
[358349043,1744969846755,-500.0,0.00022191,2]
[358349044,1744969846764,-500.0,0.00022191,2]
[358349045,1744969846774,-2153.06,0.00022191,2]
[358349046,1744969846783,-501.28,0.00022191,2]
[358349047,1744969846792,-764.2,0.00022191,2]
[358349048,1744969846802,-4182.29,0.00022191,2]
[358349049,1744969846811,-715.35,0.00022191,2]
[358349050,1744969846820,-746.14,0.00022191,2]
[358349051,1744969846829,-502.39124074,0.00022191,2]
[358349052,1744969846838,-500.0,0.00022191,2]
[358349053,1744969846848,-909.27,0.00022191,2]
[358349054,1744969846857,-500.0,0.00022191,2]
[358349055,1744969846867,-1477.51,0.00022191,2]
[358349056,1744969846876,-500.0,0.00022191,2]
[358349057,1744969846885,-614.54,0.00022191,2]
[358349058,1744969846894,-877.77,0.00022191,2]
[358349059,1744969846904,-607.98,0.00022191,2]
[358349060,1744969846915,-803.96,0.00022191,2]
[358349061,1744969846924,-376.94045374,0.00022191,2]
[358349062,1744969846933,-500.0,0.00022191,2]
[358349063,1744969846942,-500.0,0.00022191,2]
[358349064,1744969846952,-500.0,0.00022191,2]
[358349065,1744969846961,-647.25,0.00022191,2]
[358349066,1744969846970,-500.0,0.00022191,2]
[358349067,1744969846980,-500.0,0.00022191,2]
[358349068,1744969846989,-500.0,0.00022191,2]
[358349069,1744969846999,-403.98468026,0.00022191,2]
[358349070,1744969847009,-500.0,0.00022191,2]
[358349071,1744969847018,-500.0,0.00022191,2]
[358349072,1744969847028,-1226.66,0.00022191,2]
[358349073,1744969847037,-368.86867181,0.00022191,2]
[358349074,1744969847275,-946.61132819,0.00022191,2]
[358349075,1744969847286,-500.0,0.00022191,2]
[358349076,1744969847295,-500.0,0.00022191,2]
[358349077,1744969847306,-30.39413238,0.00022191,2]
[358349078,1744969847722,-177.38996013,0.00021916,2]
[358349079,1744969847732,-565.88,0.00021917,2]
[358349080,1744969847742,-469.92586762,0.00022191,2]
[358349081,1744969847751,-953.64320718,0.00022191,2]
[358349082,1744969847763,-95.30679282,0.00022191,2]
[358349083,1744969847772,-287.37320718,0.00022191,2]
[358349084,1744969847784,-212.62679282,0.00022191,2]
[358349085,1744969847793,-500.0,0.00022191,2]
[358349086,1744969847802,-500.0,0.00022191,2]
[358349087,1744969847812,-7.31088113,0.00022191,2]
[358349088,1744969847824,-492.68911887,0.00022191,2]
[358349089,1744969847834,-124.76901882,0.00022191,2]
[358349090,1744969848045,-58.69322151,0.00022191,2]
[358349091,1744969848057,-409.01775967,0.00022191,2]
[358349092,1744969848067,-500.0,0.00022191,2]
[358349093,1744969848076,-704.20553145,0.00022191,2]
[358349094,1744969848315,-193.413,0.0001958,2]
[358349095,1744969848325,-8728.38446855,0.00022191,2]
[358349096,1744969848335,-605.21,0.00022191,2]
[358349097,1744969848346,-2782.99252417,0.00022191,2]
[358349098,1744969848358,-282.82747583,0.00022191,2]
[358349099,1744969848367,-698.49571017,0.00022191,2]
[358349100,1744969882795,-306.29352369,0.00018079,2]
[358349101,1744969901578,-257.33695678,0.00018073,2]
[358349102,1744969923510,-161.76488701,0.00018073,2]
[358349103,1744969953765,-242.18531469,0.00018073,2]
[358349104,1744969958060,-160.0,0.00018073,2]
[358349105,1744969964371,-160.0,0.00018073,2]
[358349106,1744969983977,-56.87739836,0.00018073,2]
[358349107,1744969984000,-234.05284246,0.00018078,2]
[358349108,1744969991878,158.66768843,0.0001801,2]
[358349109,1744970013188,-65.94715754,0.00018078,2]
[358349110,1744970013217,-94.05284246,0.00018078,2]
[358349111,1744970019262,342.29502399,0.00017973,2]
[358349112,1744970022427,160.0,0.0001801,2]
[358349113,1744970046121,-240.92314805,0.00018078,2]
[358349115,1744970074395,-59.07685195,0.00018078,2]
[358349116,1744970074420,-100.92314805,0.00018078,2]
[358349117,1744970092209,-59.07685195,0.00018078,2]
[358349118,1744970092238,-405.94715754,0.00018078,2]
[358349119,1744970092264,-19.09689916,0.00018078,2]
[358349120,1744970107976,-300.0,0.00018078,2]
[358349125,1744970130896,159.97773,0.00017979,2]
[358349126,1744970131627,-159.97773,0.00018078,2]
[358349127,1744970137163,-414.63891272,0.00018073,2]
[358349130,1744970162993,200.74523906,0.00017978,2]
[358349131,1744970169911,766.31884152,0.00017978,2]
[358349133,1744970213675,-228.78549493,0.00018073,2]
[358349135,1744970335024,-300.0,0.00018078,2]
[358349136,1744970335048,-27.35290703,0.00018078,2]
[358349155,1744970380785,-337.7807,0.00018073,2]
[358349156,1744970443750,682.35310702,0.00017973,2]
[358349159,1744970581943,-154.225712,0.00018078,2]
[358349161,1744970661951,16733.6262075,0.00025,120]
[358349162,1744970662114,64718.88737798,0.00018,2]
[358349188,1744970885036,-292.681998,0.00018077,2]
[358349189,1744970939353,305.87957297,0.00017977,2]
[358349193,1744971032562,-300.0,0.00018077,2]
[358349194,1744971032572,-300.0,0.00018077,2]
[358349195,1744971032582,-320.92537084,0.00018078,2]
[358349197,1744971032592,-500.0,0.00018078,2]
[358349200,1744971032602,-500.0,0.00018078,2]
[358349202,1744971032612,-500.0,0.00018078,2]
[358349204,1744971032623,-500.0,0.00018078,2]
[358349206,1744971032633,-500.0,0.00018078,2]
[358349208,1744971032642,-500.0,0.00018078,2]
[358349210,1744971032651,-500.0,0.00018078,2]
[358349212,1744971032662,-500.0,0.00018078,2]
[358349214,1744971032671,-305641.75594346,0.00018079,2]
[358349216,1744971032683,-5277.97552161,0.00018079,2]
[358349509,1744971046711,-58773.97501124,0.00018079,2]
[358349510,1744971046722,-391.1959993,0.00019178,2]
[358349511,1744971046733,-5000.0,0.00019296,2]
[358349512,1744971046743,-5000.0,0.00019296,2]
[358349513,1744971046753,-175.1001384,0.00019422,2]
[358349514,1744971046763,-502.405,0.00019464,2]
[358349515,1744971046774,-402.0,0.00019475,2]
[358349516,1744971046784,-197.598,0.00019607,2]
[358349517,1744971046794,-212.545,0.00019607,2]
[358349518,1744971046804,-707.0,0.00019607,2]
[358349519,1744971046814,-544.0,0.00019607,2]
[358349520,1744971046823,-696.2127541,0.00019686,2]
[358349521,1744971046834,-420.0,0.00019723,2]
[358349522,1744971046844,-420.0,0.00019819,2]
[358349523,1744971046854,-2187.32051415,0.000199,2]
[358349524,1744971046863,-2000.0,0.0002,4]
[358349525,1744971046872,-160.0,0.00020595,2]
[358349526,1744971046882,-420.40766787,0.00020595,2]
[358349527,1744971046891,-160.0,0.00020595,2]
[358349528,1744971046902,-160.0,0.00020602,2]
[358349529,1744971046913,-345.77,0.000208,2]
[358349530,1744971046927,-2187.320514,0.000209,3]
[358349531,1744971046937,-2000.0,0.00021,4]
[358349532,1744971046945,-587.0,0.00021518,2]
[358349533,1744971046955,-23076.11319642,0.00021698,2]
[358349534,1744971046965,-587.0,0.0002173,2]
[358349535,1744971046974,-160.0,0.0002187,2]
[358349536,1744971046984,-12559.7366029,0.0002187,2]
[358349537,1744971046994,-839.29847495,0.0002187,2]
[358349538,1744971047003,-160.0,0.00021873,2]
[358349539,1744971047014,-200.0,0.000219,2]
[358349540,1744971047023,-2187.320514,0.000219,3]
[358349541,1744971047033,-500.0,0.00021917,2]
[358349542,1744971047043,-500.0,0.00021917,2]
[358349543,1744971047054,-500.0,0.00021917,2]
[358349544,1744971047063,-500.0,0.00021917,2]
[358349545,1744971047073,-585.2706653,0.00021917,2]
[358349546,1744971047083,-500.0,0.00021917,2]
[358349547,1744971047092,-659.02,0.00021917,2]
[358349548,1744971047102,-500.0,0.00021917,2]
[358349549,1744971047112,-500.0,0.00021917,2]
[358349550,1744971047121,-500.0,0.00021917,2]
[358349551,1744971047130,-500.0,0.00021917,2]
[358349552,1744971047139,-500.0,0.00021917,2]
[358349553,1744971047150,-527.34,0.00021917,2]
[358349554,1744971047160,-581.44,0.00021917,2]
[358349555,1744971047169,-500.0,0.00021917,2]
[358349556,1744971047179,-500.0,0.00021917,2]
[358349557,1744971047189,-500.0,0.00021917,2]
[358349558,1744971047198,-500.0,0.00021917,2]
[358349559,1744971047208,-507.26,0.00021917,2]
[358349560,1744971047217,-500.0,0.00021917,2]
[358349561,1744971047227,-500.0,0.00021917,2]
[358349562,1744971047236,-768.33,0.00021917,2]
[358349563,1744971047246,-1259.35,0.00021917,2]
[358349564,1744971047256,-655.89,0.00021917,2]
[358349565,1744971047265,-545.74,0.00021917,2]
[358349566,1744971047276,-500.0,0.00021917,2]
[358349567,1744971047285,-560.93,0.00021917,2]
[358349568,1744971047295,-500.0,0.00021917,2]
[358349569,1744971047305,-500.0,0.00021917,2]
[358349570,1744971047315,-160.0,0.00021917,2]
[358349571,1744971047324,-415.43521539,0.00021917,2]
[358349572,1744971047334,-501.48,0.00021917,2]
[358349573,1744971047343,-500.0,0.00021917,2]
[358349574,1744971047353,-500.0,0.00021917,2]
[358349575,1744971047363,-840.83,0.00021917,2]
[358349576,1744971047372,-500.0,0.00021917,2]
[358349577,1744971047382,-500.0,0.00021917,2]
[358349578,1744971047391,-542.16,0.00021917,2]
[358349579,1744971047402,-938.29,0.00021917,2]
[358349580,1744971047412,-500.0,0.00021917,2]
[358349581,1744971047422,-500.0,0.00021917,2]
[358349582,1744971047431,-1337.1,0.00021917,2]
[358349583,1744971047443,-500.0,0.00021917,2]
[358349584,1744971047452,-814.54,0.00021917,2]
[358349585,1744971047462,-1076.21,0.00021917,2]
[358349586,1744971047471,-612.81,0.00021917,2]
[358349587,1744971047480,-500.0,0.00021917,2]
[358349588,1744971047490,-639.36,0.00021917,2]
[358349589,1744971047499,-500.0,0.00021917,2]
[358349590,1744971047508,-500.0,0.00021917,2]
[358349591,1744971047518,-1149.26,0.00021917,2]
[358349592,1744971047527,-500.0,0.00021917,2]
[358349593,1744971047536,-500.0,0.00021917,2]
[358349594,1744971047545,-1111.86,0.00021917,2]
[358349595,1744971047555,-500.0,0.00021917,2]
[358349596,1744971047564,-1587.73,0.00021917,2]
[358349597,1744971047574,-500.0,0.00021917,2]
[358349598,1744971047583,-945.12,0.00021917,2]
[358349599,1744971047593,-500.0,0.00021917,2]
[358349600,1744971047602,-971.42,0.00021917,2]
[358349601,1744971047612,-553.72,0.00021917,2]
[358349602,1744971047626,-500.0,0.00021917,2]
[358349603,1744971047635,-500.0,0.00021917,2]
[358349604,1744971047644,-500.0,0.00021917,2]
[358349605,1744971047654,-500.0,0.00021917,2]
[358349606,1744971047665,-500.0,0.00021917,2]
[358349607,1744971047675,-500.0,0.00021917,2]
[358349608,1744971047685,-500.0,0.00021917,2]
[358349609,1744971047696,-556.54,0.00021917,2]
[358349610,1744971047706,-500.0,0.00021917,2]
[358349611,1744971047715,-350.48542291,0.00021917,2]
[358349612,1744971047725,-500.0,0.00021917,2]
[358349613,1744971047735,-500.0,0.00021917,2]
[358349614,1744971047745,-500.0,0.00021917,2]
[358349615,1744971047754,-500.0,0.00021917,2]
[358349616,1744971047763,-500.0,0.00021917,2]
[358349617,1744971047773,-985.22,0.00021917,2]
[358349618,1744971047782,-500.0,0.00021917,2]
[358349619,1744971047791,-500.0,0.00021917,2]
[358349620,1744971047801,-500.0,0.00021917,2]
[358349621,1744971047810,-500.0,0.00021917,2]
[358349622,1744971047820,-500.0,0.00021917,2]
[358349623,1744971047829,-500.0,0.00021917,2]
[358349624,1744971047838,-500.0,0.00021917,2]
[358349625,1744971047847,-585.02,0.00021917,2]
[358349626,1744971047857,-500.0,0.00021917,2]
[358349627,1744971047866,-414.55461876,0.00021917,2]
[358349628,1744971047876,-500.0,0.00021917,2]
[358349629,1744971047885,-500.0,0.00021917,2]
[358349630,1744971047894,-500.0,0.00021917,2]
[358349631,1744971047904,-500.0,0.00021917,2]
[358349632,1744971047914,-500.0,0.00021917,2]
[358349633,1744971047923,-678.72,0.00021917,2]
[358349634,1744971047934,-750.2,0.00021917,2]
[358349635,1744971047944,-500.0,0.00021917,2]
[358349636,1744971047954,-1467.99,0.00021917,2]
[358349637,1744971047963,-500.0,0.00021917,2]
[358349638,1744971047972,-659.83,0.00021917,2]
[358349639,1744971047982,-500.0,0.00021917,2]
[358349640,1744971047992,-577.21,0.00021917,2]
[358349641,1744971048001,-3340.71,0.00021917,2]
[358349642,1744971048012,-500.0,0.00021917,2]
[358349643,1744971048189,-500.0,0.00021917,2]
[358349644,1744971048199,-750.73,0.00021917,2]
[358349645,1744971048209,-1059.24,0.00021917,2]
[358349646,1744971048219,-557.32,0.00021917,2]
[358349647,1744971048229,-500.0,0.00021917,2]
[358349648,1744971048238,-1202.16,0.00021917,2]
[358349649,1744971048248,-500.0,0.00021917,2]
[358349650,1744971048258,-500.0,0.00021917,2]
[358349651,1744971048267,-1300.35,0.00021917,2]
[358349652,1744971048277,-500.0,0.00021917,2]
[358349653,1744971048287,-765.34,0.00021917,2]
[358349654,1744971048298,-500.0,0.00021917,2]
[358349655,1744971048308,-500.0,0.00021917,2]
[358349656,1744971048319,-500.0,0.00021917,2]
[358349657,1744971048329,-500.0,0.00021917,2]
[358349658,1744971048340,-500.0,0.00021917,2]
[358349659,1744971048350,-500.0,0.00021917,2]
[358349660,1744971048360,-500.0,0.00021917,2]
[358349661,1744971048370,-500.0,0.00021917,2]
[358349662,1744971048380,-500.0,0.00021917,2]
[358349663,1744971048390,-717.57,0.00021917,2]
[358349664,1744971048400,-537.69,0.00021917,2]
[358349665,1744971048411,-554.77,0.00021917,2]
[358349666,1744971048421,-1290.55,0.00021917,2]
[358349667,1744971048431,-611.70401897,0.00021917,2]
[358349668,1744971048441,-832.56,0.00021917,2]
[358349669,1744971048451,-500.0,0.00021917,2]
[358349670,1744971048461,-956.88,0.00021917,2]
[358349671,1744971048471,-761.57,0.00021917,2]
[358349672,1744971048480,-500.0,0.00021917,2]
[358349673,1744971048490,-1717.36,0.00021917,2]
[358349674,1744971048500,-500.0,0.00021917,2]
[358349675,1744971048509,-820.72,0.00021917,2]
[358349676,1744971048519,-502.04729892,0.00021917,2]
[358349677,1744971048529,-616.23,0.00021917,2]
[358349678,1744971048539,-632.03,0.00021917,2]
[358349679,1744971048548,-797.66,0.00021917,2]
[358349680,1744971048558,-1047.04,0.00021917,2]
[358349681,1744971048567,-500.0,0.00021917,2]
[358349682,1744971048578,-4932.67,0.00021917,2]
[358349683,1744971048588,-569.32,0.00021917,2]
[358349684,1744971048598,-610.73,0.00021917,2]
[358349685,1744971048609,-500.0,0.00021917,2]
[358349686,1744971048621,-500.0,0.00021917,2]
[358349687,1744971048631,-500.0,0.00021917,2]
[358349688,1744971048642,-500.0,0.00021917,2]
[358349689,1744971048652,-500.0,0.00021917,2]
[358349690,1744971048662,-500.0,0.00021917,2]
[358349691,1744971048673,-500.0,0.00021917,2]
[358349692,1744971048683,-500.0,0.00021917,2]
[358349693,1744971048694,-542.31,0.00021917,2]
[358349694,1744971048704,-500.0,0.00021917,2]
[358349695,1744971048714,-500.0,0.00021917,2]